bitfinex/quotes_SOLUSD_20220212
["timestamp","ask_amount","ask_price","bid_price","bid_amount"]
[1644647882050,3.772,94.889,94.79,15.8202]
[1644647882953,15.8205,94.89,94.79,15.8202]
[1644647884158,5.272,94.889,94.79,15.8202]
[1644647884864,5.272,94.889,94.782,23.7723]
[1644647884865,1.43968912,94.877,94.782,23.7723]
[1644647885055,113.0,94.862,94.781,40.76082225]
[1644647885357,12.67,94.86,94.738,1.4805764]
[1644647885559,1.43968912,94.851,94.726,1.4805764]
[1644647885756,5.274,94.859,94.716,76.509]
[1644647885757,15.8326,94.83,94.717,1.4805764]
[1644647885954,15.8326,94.83,94.716,71.235]
[1644647886155,35.8235878,94.828,94.717,36.93542097]
[1644647886356,5.275,94.827,94.717,36.93542097]
[1644647886555,16.505,94.827,94.717,36.93542097]
[1644647887755,15.8348,94.81,94.717,36.93542097]
[1644647887955,38.59898966,94.808,94.717,36.93542097]
[1644647888356,5.276,94.807,94.717,36.93542097]
[1644647889762,15.8349,94.8,94.717,36.93542097]
[1644647889961,5.276,94.799,94.717,36.93542097]
[1644647891763,5.276,94.799,94.718,2.38366791]
[1644647891968,38.59898966,94.808,94.718,7.65966791]
[1644647892466,5.276,94.829,94.719,2.38366791]
[1644647892665,5.275,94.835,94.72,21.1076]
[1644647892863,5.275,94.836,94.72,21.1076]
[1644647893063,5.275,94.848,94.721,2.38366791]
[1644647893263,15.831,94.83,94.722,5.275]
[1644647893462,42.60893654,94.829,94.718,1.4805764]
[1644647893663,47.88393654,94.829,94.717,36.93542097]
[1644647893865,47.88393654,94.829,94.73,15.831]
[1644647894263,2.38366791,94.828,94.73,15.831]
[1644647894464,15.8315,94.82,94.717,36.93542097]
[1644647894673,5.276,94.819,94.717,36.93542097]
[1644647894864,5.275,94.826,94.717,36.93542097]
[1644647895066,2.38366791,94.828,94.717,36.93542097]
[1644647895067,2.38366791,94.819,94.717,36.93542097]
[1644647895264,5.276,94.818,94.717,42.21042097]
[1644647895465,5.275,94.826,94.717,42.21042097]
[1644647895865,42.67837454,94.809,94.717,42.21042097]
[1644647896065,5.276,94.808,94.717,42.21042097]
[1644647896267,5.276,94.808,94.717,44.59408888]
[1644647897068,5.276,94.808,94.717,42.21042097]
[1644647897273,15.8344,94.8,94.717,42.21042097]
[1644647898572,42.67837454,94.809,94.717,42.21042097]
[1644647898770,42.67837454,94.809,94.72,15.8327]
[1644647898972,42.67837454,94.809,94.721,5.276]
[1644647899171,12.67,94.84,94.721,5.276]
[1644647899373,5.276,94.842,94.721,2.38366791]
[1644647899572,5.275,94.849,94.722,7.65866791]
[1644647899775,52.7688,94.85,94.722,7.65866791]
[1644647899776,15.8278,94.84,94.73,15.8312]
[1644647900173,47.85467384,94.839,94.731,2.38366791]
[1644647900373,47.85467384,94.839,94.732,44.57343234]
[1644647900576,42.57967384,94.839,94.732,49.84843234]
[1644647900774,15.8294,94.83,94.733,2.38366791]
[1644647901175,5.275,94.829,94.732,44.57343234]
[1644647901577,12.58403249,94.836,94.732,44.57343234]
[1644647902378,15.8329,94.81,94.732,44.57343234]
[1644647902575,36.65797281,94.809,94.732,44.57343234]
[1644647902774,5.275,94.808,94.732,44.57343234]
[1644647904577,5.275,94.808,94.706,5.275]
[1644647904578,15.8347,94.8,94.706,5.275]
[1644647904778,5.276,94.799,94.707,5.276]
[1644647904981,5.276,94.799,94.7,1.4805764]
[1644647904982,5.276,94.799,94.685,1.4805764]
[1644647905179,5.276,94.799,94.681,47.4829]
[1644647905378,12.24445226,94.798,94.681,47.4829]
[1644647905578,52.8025,94.79,94.682,36.59357201]
[1644647905778,15.8388,94.78,94.682,36.59357201]
[1644647905980,5.277,94.779,94.682,36.59357201]
[1644647906278,17.52145226,94.779,94.682,36.59357201]
[1644647906477,18.3667118,94.778,94.682,36.59357201]
[1644647906678,5.277,94.777,94.682,36.59357201]
[1644647907079,15.8438,94.75,94.682,36.59357201]
[1644647907283,15.8438,94.75,94.641,5.277]
[1644647907284,40.60268712,94.749,94.641,1.4805764]
[1644647907588,58.57981911,94.749,94.638,1.4805764]
[1644647907783,18.3667118,94.748,94.637,1.4805764]
[1644647907984,5.28,94.747,94.637,1.4805764]
[1644647908184,5.28,94.747,94.638,38.44139684]
[1644647908408,17.97713199,94.746,94.638,38.44139684]
[1644647908809,15.8485,94.72,94.638,38.44139684]
[1644647909012,37.73761562,94.718,94.638,38.44139684]
[1644647909210,5.281,94.717,94.638,38.44139684]
[1644647910213,23.6477118,94.717,94.638,38.44139684]
[1644647910512,15.8496,94.71,94.605,1.4805764]
[1644647910710,12.67,94.7,94.605,1.4805764]
[1644647910910,5.282,94.699,94.599,1.4805764]
[1644647911113,5.282,94.699,94.592,23.4819]
[1644647911411,38.36714954,94.698,94.593,46.72770652]
[1644647911612,56.72252368,94.698,94.593,46.72770652]
[1644647911812,15.857,94.68,94.593,46.72770652]
[1644647912012,48.23365118,94.679,94.593,46.72770652]
[1644647912212,53.51665118,94.679,94.593,46.72770652]
[1644647913214,12.67,94.68,94.594,5.283]
[1644647913715,5.283,94.699,94.594,5.283]
[1644647914016,5.282,94.719,94.595,2.38366791]
[1644647914216,44.64091013,94.718,94.6,1.4805764]
[1644647914417,49.92291013,94.718,94.62,15.848]
[1644647914616,44.64091013,94.718,94.622,34.38994267]
[1644647915017,5.281,94.717,94.622,34.38994267]
[1644647916221,44.64091013,94.718,94.63,15.8475]
[1644647916521,15.8471,94.73,94.631,7.66466791]
[1644647916724,15.8471,94.73,94.631,2.38366791]
[1644647916921,15.8471,94.73,94.632,7.66366791]
[1644647917121,15.8471,94.73,94.632,2.38366791]
[1644647917322,5.28,94.729,94.632,2.38366791]
[1644647917524,45.09073961,94.749,94.641,46.48108116]
[1644647917722,50.37173961,94.749,94.641,46.48108116]
[1644647918123,15.845,94.75,94.642,7.66366791]
[1644647918322,5.28,94.774,94.65,12.67]
[1644647918524,5.279,94.768,94.68,15.8406]
[1644647918725,15.8415,94.77,94.68,15.8406]
[1644647918925,5.277,94.769,94.68,15.8406]
[1644647919126,44.93621984,94.768,94.681,36.8520091]
[1644647919326,5.277,94.767,94.681,36.8520091]
[1644647920528,15.8421,94.76,94.681,36.8520091]
[1644647920724,5.277,94.759,94.681,36.8520091]
[1644647920928,5.277,94.767,94.681,36.8520091]
[1644647921726,15.8436,94.75,94.681,36.8520091]
[1644647921926,34.51155828,94.749,94.681,36.8520091]
[1644647922729,5.277,94.748,94.68,15.8406]
[1644647922931,0.48,94.729,94.607,2.97620312]
[1644647923132,0.48,94.729,94.5,4.25]
[1644647923133,0.48,94.719,94.585,1.4805764]
[1644647923429,5.48,94.679,94.553,1.4805764]
[1644647923629,0.48,94.659,94.534,1.4805764]
[1644647923830,12.67,94.65,94.554,38.06284246]
[1644647924129,46.02247058,94.649,94.554,38.06284246]
[1644647924330,89.9066872,94.649,94.554,38.06284246]
[1644647924531,2.38366791,94.648,94.554,38.06284246]
[1644647924729,15.8702,94.63,94.554,38.06284246]
[1644647924931,12.67,94.62,94.554,38.06284246]
[1644647925129,12.67,94.61,94.554,38.06284246]
[1644647925330,12.67,94.6,94.554,38.06284246]
[1644647925732,5.285,94.599,94.554,38.06284246]
[1644647929034,28.5394,94.6,94.501,5.285]
[1644647929237,28.5394,94.6,94.499,74.6778]
[1644647929238,5.288,94.598,94.499,74.6778]
[1644647929437,15.8733,94.58,94.499,74.6778]
[1644647929635,15.8733,94.58,94.48,5.288]
[1644647930143,42.30775402,94.579,94.481,35.35090802]
[1644647931334,42.30775402,94.579,94.482,5.289]
[1644647931335,5.289,94.578,94.482,5.289]
[1644647934540,15.8741,94.57,94.481,35.35090802]
[1644647934748,5.289,94.569,94.481,35.35090802]
[1644647935139,21.83448525,94.569,94.481,35.35090802]
[1644647935341,15.35591936,94.568,94.481,35.35090802]
[1644647935640,5.289,94.567,94.481,35.35090802]
[1644647936142,21.74302847,94.566,94.481,34.70090802]
[1644647936541,40.15260538,94.564,94.481,34.70090802]
[1644647936743,15.8776,94.55,94.461,23.5478]
[1644647937042,5.289,94.563,94.441,4.789]
[1644647937043,12.67,94.54,94.441,4.789]
[1644647937643,21.74302847,94.539,94.441,4.789]
[1644647937843,39.91120327,94.538,94.442,46.23937577]
[1644647938443,10.29783356,94.537,94.442,46.23937577]
[1644647938646,31.83363958,94.537,94.442,46.23937577]
[1644647938843,15.8822,94.53,94.442,46.23937577]
[1644647939043,28.5522,94.53,94.442,46.23937577]
[1644647939244,27.02463958,94.529,94.442,46.23937577]
[1644647939643,21.73363958,94.528,94.442,46.23937577]
[1644647939844,5.291,94.527,94.442,46.23937577]
[1644647940242,20.62188502,94.526,94.442,46.23937577]
[1644647940643,37.16998968,94.523,94.442,46.23937577]
[1644647940843,37.16998968,94.523,94.443,5.291]
[1644647941046,5.291,94.522,94.442,46.23937577]
[1644647941447,11.41702824,94.521,94.442,46.23937577]
[1644647941647,33.8459,94.52,94.442,46.23937577]
[1644647941948,44.16251134,94.52,94.442,46.23937577]
[1644647942353,12.67,94.54,94.442,46.23937577]
[1644647942550,5.291,94.539,94.442,46.23937577]
[1644647942751,15.8824,94.53,94.442,46.23937577]
[1644647942954,5.291,94.529,94.442,46.23937577]
[1644647943147,37.04246373,94.528,94.442,46.23937577]
[1644647943349,5.291,94.527,94.442,46.23937577]
[1644647943550,5.291,94.527,94.401,5.291]
[1644647943852,15.8872,94.51,94.386,1.4805764]
[1644647944049,12.67,94.5,94.401,5.291]
[1644647944249,5.292,94.499,94.383,1.4805764]
[1644647944448,5.292,94.499,94.384,5.292]
[1644647944449,44.91565065,94.498,94.384,5.292]
[1644647944651,5.293,94.497,94.364,1.4805764]
[1644647944849,5.293,94.497,94.337,2.97620312]
[1644647944850,5.293,94.497,94.353,1.4805764]
[1644647945049,2.38366791,94.496,94.344,0.4805764]
[1644647945252,5.295,94.495,94.345,5.295]
[1644647945451,6.33281913,94.495,94.346,39.56247054]
[1644647945652,15.8902,94.49,94.347,5.295]
[1644647945851,12.67,94.48,94.347,5.295]
[1644647946051,45.56460029,94.479,94.347,5.295]
[1644647946652,15.8955,94.45,94.35,15.8943]
[1644647947263,15.8955,94.45,94.348,23.7808]
[1644647947454,5.296,94.449,94.348,23.7808]
[1644647947852,15.8984,94.44,94.348,23.7808]
[1644647948050,5.296,94.459,94.349,5.296]
[1644647948252,12.67,94.46,94.349,5.296]
[1644647949757,28.5643,94.46,94.35,15.8947]
[1644647949965,5.296,94.459,94.351,5.296]
[1644647950369,5.296,94.479,94.352,2.38366791]
[1644647950570,5.296,94.508,94.36,12.67]
[1644647950771,12.67,94.51,94.361,163.0968]
[1644647950967,5.293,94.507,94.361,165.48046791]
[1644647951167,18.98341735,94.53,94.373,62.98]
[1644647951168,5.293,94.509,94.373,62.98]
[1644647951372,12.67,94.55,94.38,12.67]
[1644647951582,5.293,94.529,94.389,2.97620312]
[1644647951774,18.12967887,94.55,94.381,79.3202]
[1644647951775,5.292,94.549,94.4,12.67]
[1644647951969,5.45967887,94.55,94.41,12.67]
[1644647952268,15.8783,94.55,94.45,15.8781]
[1644647952471,15.8783,94.55,94.451,45.90824973]
[1644647952868,15.8783,94.55,94.452,2.38366791]
[1644647953068,5.29,94.549,94.452,2.38366791]
[1644647953268,15.8783,94.55,94.453,5.29]
[1644647953967,5.29,94.558,94.46,15.8772]
[1644647954171,15.8761,94.57,94.461,5.29]
[1644647954369,5.289,94.581,94.462,48.0941]
[1644647954568,12.67,94.59,94.462,50.47776791]
[1644647954769,5.289,94.597,94.463,5.289]
[1644647954968,5.289,94.618,94.48,15.8738]
[1644647955169,42.24477731,94.631,94.481,68.27003302]
[1644647955468,5.288,94.631,94.5,4.25]
[1644647955668,12.67,94.65,94.501,47.6993]
[1644647955869,5.285,94.649,94.501,47.6993]
[1644647956069,5.285,94.649,94.52,15.8638]
[1644647956369,37.627681,94.648,94.521,59.20616208]
[1644647956577,5.285,94.647,94.522,5.285]
[1644647957787,15.8635,94.64,94.53,15.8642]
[1644647957989,5.285,94.639,94.531,5.285]
[1644647958389,7.66866791,94.639,94.521,59.20616208]
[1644647958590,15.26137291,94.638,94.521,59.20616208]
[1644647958791,5.285,94.637,94.521,59.20616208]
[1644647959193,39.4663369,94.619,94.521,59.20616208]
[1644647959394,5.287,94.618,94.521,59.20616208]
[1644647959993,5.287,94.618,94.47,52.9027]
[1644647960193,12.37021858,94.617,94.465,2.97620312]
[1644647960394,15.8798,94.58,94.451,2.97620312]
[1644647960592,12.67,94.57,94.445,2.97620312]
[1644647960793,5.289,94.569,94.442,3.9659]
[1644647960994,40.71447466,94.568,94.471,46.78798935]
[1644647961191,40.71447466,94.568,94.442,3.9659]
[1644647961192,5.289,94.567,94.442,3.9659]
[1644647961395,7.67266791,94.567,94.442,3.9659]
[1644647961600,2.38366791,94.566,94.442,3.9659]
[1644647961793,15.8811,94.55,94.442,3.9659]
[1644647961995,12.67,94.54,94.481,8.7]
[1644647962195,45.24083427,94.539,94.481,8.7]
[1644647962795,15.8826,94.53,94.481,8.7]
[1644647962995,28.5526,94.53,94.481,8.7]
[1644647963195,5.29,94.529,94.481,7.90198267]
[1644647963395,7.67366791,94.529,94.481,4.23050375]
[1644647963698,45.38366791,94.528,94.442,3.9659]
[1644647963893,5.291,94.527,94.442,3.9659]
[1644647964097,15.8873,94.52,94.442,0.9659]
[1644647964293,12.67,94.51,94.442,0.9659]
[1644647964497,28.5573,94.52,94.442,0.9659]
[1644647964895,12.67,94.52,94.442,0.9659]
[1644647965294,5.292,94.519,94.442,0.9659]
[1644647965512,52.84019363,94.519,94.442,0.9659]
[1644647965896,5.292,94.519,94.442,0.9659]
[1644647966500,28.5545,94.52,94.442,0.9659]
[1644647966701,5.292,94.519,94.442,0.9659]
[1644647966900,48.29868568,94.518,94.442,0.9659]
[1644647967102,5.292,94.519,94.442,0.9659]
[1644647967302,12.67,94.52,94.442,0.9659]
[1644647967704,5.292,94.519,94.442,0.9659]
[1644647967903,5.292,94.519,94.437,32.77507135]
[1644647968103,42.46656313,94.519,94.437,32.77507135]
[1644647968508,12.67,94.52,94.437,32.77507135]
[1644647968707,12.67,94.52,94.438,5.292]
[1644647968908,28.5511,94.54,94.44,15.8796]
[1644647969108,5.292,94.556,94.441,5.291]
[1644647969308,12.67,94.57,94.439,7.67466791]
[1644647969508,5.29,94.569,94.441,2.38366791]
[1644647969710,52.9138,94.6,94.441,2.38366791]
[1644647969711,5.29,94.584,94.442,5.29]
[1644647969909,5.29,94.585,94.443,5.94305016]
[1644647970109,5.29,94.585,94.45,15.8773]
[1644647970313,12.67,94.6,94.451,5.29]
[1644647970508,38.44829297,94.585,94.453,2.97620312]
[1644647970710,38.44829297,94.585,94.454,5.289]
[1644647970913,38.44829297,94.585,94.454,7.67266791]
[1644647971109,38.44829297,94.585,94.455,2.96651883]
[1644647971411,5.289,94.599,94.456,5.289]
[1644647971609,12.67,94.6,94.457,2.97620312]
[1644647971810,5.289,94.599,94.48,15.873]
[1644647972010,28.5409,94.6,94.481,5.289]
[1644647972211,5.289,94.599,94.481,5.289]
[1644647972513,42.35853133,94.585,94.482,43.80378037]
[1644647972712,37.06953133,94.585,94.483,5.289]
[1644647973112,12.67,94.58,94.483,5.289]
[1644647973316,5.289,94.579,94.482,43.80378037]
[1644647974411,15.8748,94.57,94.482,43.80378037]
[1644647974613,39.47960614,94.569,94.483,5.289]
[1644647974817,39.47960614,94.569,94.482,43.80378037]
[1644647975016,5.289,94.568,94.482,43.80378037]
[1644647975816,15.8761,94.56,94.482,43.80378037]
[1644647976032,5.289,94.568,94.482,43.80378037]
[1644647976231,5.289,94.585,94.483,7.67266791]
[1644647976433,5.289,94.597,94.483,7.67266791]
[1644647976631,23.2832,94.653,94.483,7.67266791]
[1644647976632,5.289,94.599,94.484,2.38366791]
[1644647976832,5.289,94.621,94.484,2.38366791]
[1644647977032,5.289,94.623,94.484,2.38366791]
[1644647977231,5.289,94.629,94.484,2.38366791]
[1644647977435,43.16253928,94.585,94.484,2.38366791]
[1644647977633,43.16253928,94.585,94.485,5.289]
[1644647977834,15.8678,94.61,94.49,15.8717]
[1644647978032,5.288,94.609,94.5,12.67]
[1644647978332,5.288,94.609,94.501,5.288]
[1644647978536,15.8678,94.61,94.501,5.288]
[1644647978833,44.53516923,94.585,94.502,38.92666917]
[1644647979033,15.8678,94.61,94.503,5.288]
[1644647979533,239.85,94.644,94.502,38.92666917]
[1644647979534,2.38366791,94.608,94.502,38.92666917]
[1644647979735,5.288,94.585,94.502,38.92666917]
[1644647979936,37.49019068,94.584,94.502,38.92666917]
[1644647980135,5.288,94.583,94.502,38.92666917]
[1644647980537,37.49019068,94.584,94.502,38.92666917]
[1644647980735,15.8727,94.58,94.502,38.92666917]
[1644647980935,37.49019068,94.584,94.502,38.92666917]
[1644647981234,52.9089,94.61,94.502,38.92666917]
[1644647981235,5.288,94.609,94.503,7.67166791]
[1644647981434,5.288,94.598,94.503,7.67166791]
[1644647981633,5.287,94.608,94.504,2.38366791]
[1644647981834,12.67,94.61,94.504,2.38366791]
[1644647981835,5.287,94.609,94.504,2.38366791]
[1644647982034,40.35225077,94.608,94.504,2.38366791]
[1644647982234,5.287,94.607,94.504,2.38366791]
[1644647982439,40.35225077,94.608,94.504,2.38366791]
[1644647982835,40.35225077,94.608,94.51,15.8685]
[1644647983237,28.5385,94.61,94.51,15.8685]
[1644647983436,5.287,94.623,94.511,2.38366791]
[1644647983736,5.287,94.629,94.52,12.67]
[1644647983936,5.285,94.668,94.52,12.67]
[1644647984139,113.0,94.647,94.521,31.63376791]
[1644647984336,44.85148703,94.646,94.522,45.40930913]
[1644647984538,39.56648703,94.646,94.54,15.8612]
[1644647984737,39.56648703,94.646,94.55,12.67]
[1644647985138,5.285,94.669,94.55,12.67]
[1644647985338,113.0,94.645,94.551,5.284]
[1644647985541,113.0,94.645,94.541,46.59112052]
[1644647985542,5.285,94.644,94.541,44.20745261]
[1644647985940,7.66866791,94.644,94.541,44.20745261]
[1644647986141,12.67,94.64,94.541,44.20745261]
[1644647986342,5.285,94.639,94.541,44.20745261]
[1644647986640,44.29100458,94.619,94.541,44.20745261]
[1644647987740,5.285,94.618,94.541,44.20745261]
[1644647988440,15.8674,94.61,94.541,44.20745261]
[1644647988642,5.285,94.609,94.541,44.20745261]
[1644647988843,15.8674,94.61,94.524,24.4485]
[1644647989043,113.0,94.608,94.502,5.285]
[1644647989241,113.0,94.608,94.41,7.0]
[1644647989242,113.0,94.608,94.481,5.287]
[1644647989445,15.8699,94.6,94.48,15.8727]
[1644647989642,5.288,94.599,94.48,15.8727]
[1644647989846,39.8519306,94.598,94.481,40.52736506]
[1644647990047,5.288,94.597,94.481,40.52736506]
[1644647990243,39.8519306,94.598,94.482,5.288]
[1644647990645,38.8519306,94.598,94.482,5.288]
[1644647991246,15.8704,94.59,94.49,15.8725]
[1644647991445,113.0,94.608,94.491,5.288]
[1644647991645,113.0,94.608,94.483,7.67166791]
[1644647991845,118.288,94.608,94.484,2.97105229]
[1644647992045,113.0,94.608,94.484,5.3547202]
[1644647992244,113.0,94.608,94.483,5.288]
[1644647992245,5.288,94.607,94.51,15.8683]
[1644647992547,41.21263116,94.606,94.511,47.37638705]
[1644647992745,5.287,94.605,94.511,47.37638705]
[1644647992947,41.21263116,94.606,94.511,52.66338705]
[1644647993247,15.8688,94.6,94.511,47.37638705]
[1644647993446,41.93030402,94.589,94.511,47.37638705]
[1644647993646,5.288,94.588,94.511,47.37638705]
[1644647994848,15.8746,94.57,94.482,5.288]
[1644647995050,5.289,94.569,94.481,24.8404]
[1644647995447,5.289,94.579,94.481,24.8404]
[1644647995851,5.289,94.579,94.482,40.58406906]
[1644647996751,15.8759,94.56,94.482,40.58406906]
[1644647996951,34.24685547,94.558,94.482,40.58406906]
[1644647997451,5.289,94.557,94.467,5.289]
[1644647997755,28.5473,94.55,94.467,5.289]
[1644647997950,5.29,94.549,94.467,5.289]
[1644647998552,5.29,94.549,94.467,53.93170002]
[1644647998751,5.29,94.549,94.467,5.289]
[1644647998955,15.8816,94.53,94.436,2.97620312]
[1644647999152,65.6231,94.52,94.434,2.97620312]
[1644647999353,5.292,94.519,94.434,2.97620312]
[1644647999752,5.292,94.519,94.434,35.96871555]
[1644647999753,45.01404356,94.518,94.434,35.96871555]
[1644647999954,5.292,94.517,94.435,2.98310759]
[1644648000455,5.292,94.517,94.434,35.96871555]
[1644648000653,15.886,94.51,94.434,35.96871555]
[1644648000953,28.556,94.51,94.434,35.96871555]
[1644648001364,37.336,94.51,94.434,35.96871555]
[1644648001757,8.78,94.51,94.435,2.98250339]
[1644648001955,8.78,94.51,94.436,5.292]
[1644648002156,8.78,94.51,94.436,7.67566791]
[1644648002353,8.78,94.51,94.438,2.97620312]
[1644648002553,8.78,94.51,94.439,5.292]
[1644648002755,8.78,94.51,94.44,18.86320339]
[1644648002958,8.28,94.51,94.44,15.8807]
[1644648004157,8.28,94.51,94.441,2.38366791]
[1644648004358,8.28,94.51,94.45,15.8787]
[1644648004759,8.28,94.51,94.451,2.38366791]
[1644648005159,8.28,94.51,94.452,38.85768782]
[1644648005360,28.547,94.56,94.452,44.14968782]
[1644648005565,28.547,94.56,94.453,2.38366791]
[1644648005566,5.29,94.553,94.453,2.38366791]
[1644648005759,5.29,94.559,94.454,8.26974133]
[1644648006165,5.29,94.559,94.455,5.36340924]
[1644648006365,36.22745999,94.558,94.456,5.29]
[1644648006765,36.22745999,94.558,94.46,15.8773]
[1644648006966,5.29,94.557,94.46,15.8773]
[1644648007367,5.29,94.557,94.46,18.26096791]
[1644648007768,5.29,94.559,94.461,2.97874919]
[1644648007967,5.29,94.609,94.5,15.8704]
[1644648008368,161.24441893,94.67,94.501,7.67166791]
[1644648008369,5.288,94.619,94.501,7.67166791]
[1644648008567,39.09701083,94.597,94.502,45.29101214]
[1644648008867,36.35199715,94.582,94.502,52.96268005]
[1644648009069,36.35199715,94.582,94.521,37.72405825]
[1644648009696,5.288,94.573,94.521,37.72405825]
[1644648009893,5.288,94.573,94.48,12.67]
[1644648010292,5.288,94.573,94.48,15.8748]
[1644648010992,5.288,94.573,94.481,39.59062696]
[1644648011792,15.8738,94.57,94.481,39.59062696]
[1644648011993,5.289,94.569,94.481,39.59062696]
[1644648012193,2.38366791,94.569,94.481,39.59062696]
[1644648012392,36.24102348,94.567,94.481,39.59062696]
[1644648012593,5.289,94.566,94.481,39.59062696]
[1644648013896,15.8755,94.56,94.481,39.59062696]
[1644648014096,5.289,94.559,94.481,39.59062696]
[1644648014298,5.289,94.564,94.481,39.59062696]
[1644648014497,5.289,94.566,94.481,39.59062696]
[1644648015597,5.289,94.573,94.482,2.38366791]
[1644648015900,5.289,94.589,94.49,15.873]
[1644648016098,5.289,94.608,94.491,5.289]
[1644648016299,5.289,94.588,94.492,2.98457126]
[1644648016496,38.36253495,94.581,94.492,10.65723917]
[1644648016698,38.36253495,94.581,94.492,2.38366791]
[1644648016898,38.36253495,94.581,94.493,5.289]
[1644648017098,17.959,94.61,94.51,15.8687]
[1644648017399,12.67,94.63,94.51,15.8687]
[1644648017698,5.287,94.629,94.511,55.59406791]
[1644648017897,113.0,94.636,94.511,55.59406791]
[1644648017898,5.287,94.635,94.511,50.30906791]
[1644648018098,42.97037197,94.628,94.512,54.25195961]
[1644648018298,5.287,94.627,94.512,54.25195961]
[1644648018502,5.287,94.627,94.513,2.38366791]
[1644648018699,5.287,94.627,94.53,15.8658]
[1644648018999,42.97037197,94.628,94.532,45.76453713]
[1644648019199,5.285,94.626,94.532,45.76453713]
[1644648019399,5.285,94.627,94.532,45.76453713]
[1644648020801,15.8652,94.62,94.532,45.76453713]
[1644648021005,5.285,94.619,94.532,45.76453713]
[1644648021202,42.97037197,94.628,94.532,45.76453713]
[1644648021600,42.97037197,94.628,94.531,5.285]
[1644648021801,15.8669,94.61,94.497,2.97620312]
[1644648021999,113.0,94.594,94.49,15.8714]
[1644648022202,5.288,94.593,94.491,2.98383038]
[1644648022502,5.288,94.593,94.479,2.97620312]
[1644648022700,40.17256321,94.593,94.48,35.62703597]
[1644648022907,5.288,94.592,94.48,35.62703597]
[1644648023201,5.288,94.592,94.481,2.98484594]
[1644648023801,40.36170697,94.569,94.481,2.98484594]
[1644648024002,5.289,94.568,94.48,51.50163597]
[1644648024205,40.36170697,94.569,94.481,5.289]
[1644648024402,40.36170697,94.569,94.48,35.62703597]
[1644648024602,5.289,94.568,94.48,35.62703597]
[1644648025004,5.289,94.568,94.482,9.76808772]
[1644648025404,15.8756,94.56,94.482,9.76808772]
[1644648025606,5.289,94.559,94.482,9.76808772]
[1644648026504,39.40517023,94.539,94.482,9.76808772]
[1644648026704,5.29,94.538,94.482,9.76808772]
[1644648027907,15.8804,94.53,94.482,9.76808772]
[1644648028506,15.8804,94.53,94.481,9.76808772]
[1644648029710,15.8804,94.53,94.481,8.76808772]
[1644648029909,15.8783,94.54,94.481,8.76808772]
[1644648030812,52.54421148,94.54,94.481,8.76808772]
[1644648031209,15.8783,94.54,94.481,8.76808772]
[1644648031611,5.29,94.559,94.481,8.76808772]
[1644648031812,12.67,94.57,94.482,5.289]
[1644648032012,7.67,94.57,94.482,5.289]
[1644648032217,7.67,94.57,94.483,8.76808772]
[1644648033013,5.289,94.579,94.483,8.76808772]
[1644648033214,45.74144912,94.578,94.483,8.76808772]
[1644648033816,45.74144912,94.578,94.484,2.38366791]
[1644648034017,45.74144912,94.578,94.485,5.289]
[1644648034018,5.289,94.577,94.485,5.289]
[1644648034416,5.289,94.577,94.486,2.38366791]
[1644648034615,45.74144912,94.578,94.486,2.38366791]
[1644648034817,5.289,94.576,94.49,15.8731]
[1644648035115,5.289,94.577,94.49,15.8731]
[1644648035517,5.289,94.577,94.491,8.76808772]
[1644648035719,5.289,94.593,94.5,12.67]
[1644648035917,113.0,94.594,94.52,15.8683]
[1644648036117,113.0,94.594,94.521,5.287]
[1644648036619,113.0,94.594,94.522,46.12117963]
[1644648036817,113.0,94.594,94.523,5.287]
[1644648037519,113.0,94.594,94.53,15.8668]